bitfinex-derivatives/quotes_ETHF0:USTF0_20250616
["timestamp","ask_amount","ask_price","bid_price","bid_amount"]
[1750040650356,0.77828,2569.6,2569.4,3.2078]
[1750040650546,0.77828,2569.5,2569.4,3.2078]
[1750040650750,0.00583771,2569.7,2569.4,3.98611]
[1750040650959,0.77825,2569.6,2569.5,1.3531]
[1750040651256,0.00583771,2569.7,2569.6,0.77825]
[1750040651840,0.00583771,2569.7,2569.5,1.3531]
[1750040651841,0.00583771,2569.7,2569.5,2.0241]
[1750040652051,0.00583771,2569.7,2569.5,2.80237]
[1750040652254,0.78405771,2569.7,2569.5,2.80237]
[1750040652545,0.00583771,2569.7,2569.5,2.80237]
[1750040652752,0.00583771,2569.7,2569.5,2.0241]
[1750040653252,2.31879223,2570.8,2569.5,7.0241]
[1750040653456,8.90740228,2570.9,2570.2,3.2078]
[1750040653750,4.5437,2570.9,2570.5,3.2078]
[1750040653950,0.7779,2570.8,2570.5,3.98576]
[1750040654150,1.3359,2570.9,2570.8,0.77789]
[1750040654350,0.77786,2570.9,2570.8,3.2078]
[1750040654550,5.14156228,2570.9,2570.8,3.2078]
[1750040654855,0.00583771,2571.1,2570.6,0.00583771]
[1750040654856,0.77792,2570.7,2570.6,0.00583771]
[1750040655249,0.77783,2571.0,2570.6,0.00583771]
[1750040655455,0.00583771,2571.1,2570.6,0.00583771]
[1750040655456,0.77786,2570.9,2570.8,3.2078]
[1750040658365,0.77792,2570.7,2570.6,0.00583771]
[1750040661849,10.13836446,2570.7,2569.2,1.75699133]
[1750040662057,3.2078,2570.4,2569.8,3.98598]
[1750040662246,0.6595,2570.6,2570.1,3.2078]
[1750040662452,0.77805,2570.3,2570.2,1.2579]
[1750040662860,0.6595,2570.6,2570.2,1.2579]
[1750040663160,0.77796,2570.6,2570.3,3.98584]
[1750040663353,0.77798,2570.5,2570.4,1.2579]
[1750040663758,7.7036,2570.9,2570.3,3.2078]
[1750040663759,0.77801,2570.4,2570.3,3.2078]
[1750040663953,3.24113,2570.8,2570.1,1.2973]
[1750040664158,0.77804,2570.3,2570.2,1.2579]
[1750040664758,0.7781,2570.1,2570.0,3.21363771]
[1750040665861,0.77806,2570.3,2570.0,3.99174771]
[1750040666060,0.77807,2570.2,2570.1,1.2371]
[1750040666356,0.77805,2570.3,2570.1,1.2371]
[1750040666557,0.77807,2570.2,2570.1,1.2371]
[1750040666752,8.3687,2570.6,2570.1,1.2371]
[1750040666953,0.77807,2570.2,2570.1,1.2371]
[1750040669156,0.77805,2570.3,2570.1,2.01519]
[1750040670163,0.77807,2570.2,2570.1,1.2371]
[1750040670764,0.77806,2570.3,2570.1,1.2371]
[1750040670964,0.77807,2570.2,2570.1,1.2371]
[1750040671165,0.77806,2570.3,2570.1,1.2371]
[1750040671368,0.77806,2570.3,2570.1,2.0152]
[1750040671565,0.77807,2570.2,2570.1,1.2371]
[1750040674767,0.77807,2570.2,2570.0,3.21363771]
[1750040674972,1.94556,2569.8,2568.9,0.77845]
[1750040675163,61.6687,2570.1,2568.7,1.9997]
[1750040675164,3.2078,2569.2,2568.7,1.9997]
[1750040675363,3.2078,2569.2,2568.8,1.9687]
[1750040675563,0.77837,2569.2,2568.9,0.77845]
[1750040675764,0.77837,2569.2,2568.8,1.9687]
[1750040675765,0.7784,2569.1,2569.0,1.3339]
[1750040676065,3.2078,2569.2,2568.8,0.6348]
[1750040676374,3.98626,2568.9,2568.8,1.9687]
[1750040676667,0.77849,2568.8,2568.7,0.00583771]
[1750040677265,5.1406635,2568.8,2568.7,0.00583771]
[1750040679767,0.77863,2568.4,2568.2,1.3264]
[1750040679967,3.2078,2568.3,2568.2,3.40897]
[1750040680969,3.98633,2568.7,2568.3,0.77863]
[1750040681170,3.98633,2568.7,2568.4,0.77861]
[1750040681566,3.98633,2568.7,2567.8,9.30277612]
[1750040681567,3.2078,2567.6,2565.9,6.37375807]
[1750040681766,4.3621735,2568.5,2565.2,1.3039]
[1750040681767,3.2078,2566.2,2565.2,1.3039]
[1750040681965,3.2078,2566.6,2565.5,3.2078]
[1750040682165,3.2078,2566.4,2565.8,3.2078]
[1750040682463,3.2078,2566.8,2565.9,8.6769]
[1750040682662,3.2078,2566.8,2565.9,11.8847]
[1750040682859,3.98691,2566.8,2566.0,0.6473]
[1750040683070,3.2078,2566.8,2566.1,1.9277]
[1750040683269,3.2078,2566.8,2566.2,10.5838]
[1750040683471,0.77915,2566.7,2566.3,1.2941]
[1750040683672,3.2078,2566.5,2566.3,1.2941]
[1750040683874,3.987,2566.5,2566.3,1.2941]
[1750040684073,3.2078,2566.5,2566.3,1.2941]
[1750040684867,3.2078,2566.5,2566.4,7.376]
[1750040685070,0.00583771,2567.0,2566.4,7.376]
[1750040685071,3.2078,2566.8,2566.4,7.376]
[1750040685276,3.2078,2566.8,2566.5,1.2941]
[1750040685568,0.00583771,2567.0,2566.5,1.2941]
[1750040686169,0.77907,2566.9,2566.5,1.2941]
[1750040686673,0.78488771,2567.0,2566.5,1.2941]
[1750040686873,0.77905,2566.9,2566.5,1.2941]
[1750040687175,0.77901,2566.9,2566.5,1.2941]
[1750040687368,0.77903,2566.8,2566.5,1.2941]
[1750040687569,0.779,2566.9,2566.5,1.2941]
[1750040687978,0.77903,2566.9,2566.5,1.2941]
[1750040688276,0.77904,2566.8,2566.5,1.2941]
[1750040688474,0.77901,2566.9,2566.5,1.2941]
[1750040688869,0.00583771,2567.0,2566.5,1.2941]
[1750040689073,0.779,2566.9,2566.5,1.2941]
[1750040689476,0.77903,2566.8,2566.5,1.2941]
[1750040689775,3.2078,2566.9,2566.5,1.2941]
[1750040689979,0.77905,2566.8,2566.5,1.2941]
[1750040690175,0.77906,2566.7,2566.6,48.178]
[1750040690479,3.2078,2566.9,2566.6,48.178]
[1750040690674,3.2078,2566.9,2566.7,1.3348]
[1750040690675,0.77903,2566.8,2566.7,1.3348]
[1750040690877,0.77903,2566.8,2566.7,1.9672]
[1750040691077,0.77903,2566.8,2566.7,6.9672]
[1750040691280,0.77903,2566.8,2566.7,14.3452]
[1750040691487,0.77901,2566.9,2566.7,17.553]
[1750040691675,0.00583771,2567.0,2566.8,1.3348]
[1750040691879,0.00583771,2567.0,2566.9,0.6463]
[1750040692182,0.78480771,2567.0,2566.9,0.6463]
[1750040692384,0.78480771,2567.0,2566.9,14.377]
[1750040693284,0.78480771,2567.0,2566.9,9.377]
[1750040693474,0.78480771,2567.0,2566.9,1.998]
[1750040693681,0.78480771,2567.0,2566.9,9.377]
[1750040693877,0.78480771,2567.0,2566.9,0.8549]
[1750040694083,0.77903,2566.8,2566.7,24.1894]
[1750040694282,0.77925,2566.1,2565.9,3.2078]
[1750040694484,0.00583771,2567.0,2566.1,24.33623]
[1750040694680,0.77909,2566.6,2566.5,3.2078]
[1750040694881,0.77909,2566.6,2566.5,10.5868]
[1750040695685,0.77909,2566.6,2566.5,7.379]
[1750040695981,0.77915,2566.4,2566.3,26.6287]
[1750040696180,0.77913,2566.5,2566.3,34.0077]
[1750040696484,0.77915,2566.4,2566.3,0.6247]
[1750040696684,0.77915,2566.4,2566.3,33.9857]
[1750040696886,0.77914,2566.5,2566.3,37.1935]
[1750040697189,0.77914,2566.5,2566.4,8.0023]
[1750040697491,0.77914,2566.5,2566.4,9.318]
[1750040697684,0.77914,2566.5,2566.4,12.5258]
[1750040698093,0.77912,2566.5,2566.4,9.318]
[1750040698390,0.00583771,2567.0,2566.4,12.5258]
[1750040698694,0.77911,2566.6,2566.4,12.5258]
[1750040699100,0.00583771,2567.0,2566.5,7.38]
[1750040699398,0.00583771,2567.0,2566.6,1.2727]
[1750040699901,0.00583771,2567.0,2566.9,3.2078]
[1750040700097,0.77887,2567.4,2567.0,0.77895]
[1750040700303,0.77891,2567.2,2567.1,1.9245]
[1750040700499,0.77891,2567.2,2567.1,9.3045]
[1750040701001,0.77891,2567.2,2567.1,1.9245]
[1750040701195,0.77891,2567.2,2567.1,9.3045]
[1750040701390,0.77891,2567.2,2567.1,1.9245]
[1750040701603,0.00583771,2567.4,2567.1,1.9245]
[1750040701798,3.2078,2568.2,2567.7,0.77875]
[1750040701999,3.2078,2568.5,2567.9,3.2078]
[1750040702202,3.8926,2569.0,2568.1,3.2078]
[1750040702400,3.2078,2568.4,2568.2,49.5475]
[1750040702602,5.1552172,2568.8,2568.2,42.1675]
[1750040702907,5.1552172,2568.8,2568.3,7.38]
[1750040702908,0.77855,2568.4,2568.3,7.38]
[1750040703099,3.2078,2568.4,2568.3,7.38]
[1750040703300,3.98635,2568.4,2568.3,7.38]
[1750040703801,0.77858,2568.3,2568.2,1.37333771]
[1750040704006,0.77858,2568.3,2568.2,7.38483771]
[1750040705007,3.98636,2568.4,2568.2,7.38483771]
[1750040705305,0.77853,2568.5,2568.2,7.38483771]
[1750040705501,0.7785,2568.6,2568.2,8.74713771]
[1750040705802,3.2078,2568.7,2568.4,0.77854]
[1750040705995,0.00583771,2568.8,2568.5,2.1408]
[1750040706201,0.78427771,2568.8,2568.6,7.379]
[1750040706402,0.00583771,2568.8,2568.6,7.379]
[1750040706801,0.77846,2568.7,2568.6,7.379]
[1750040707104,5.1521485,2568.8,2568.6,7.379]
[1750040707304,0.77846,2568.7,2568.6,7.379]
[1750040707802,5.1521485,2568.8,2568.6,7.379]
[1750040708710,0.78426771,2568.8,2568.6,7.379]
[1750040709111,0.77846,2568.7,2568.6,7.379]
[1750040709809,0.78427771,2568.8,2568.6,7.379]
[1750040710313,0.77846,2568.7,2568.6,7.379]
[1750040710815,0.78428771,2568.8,2568.6,7.379]
[1750040711006,0.77846,2568.7,2568.6,7.379]
[1750040711202,6.3197885,2568.8,2568.2,0.00583771]
[1750040711408,3.2078,2568.5,2568.4,7.377]
[1750040711911,0.77852,2568.5,2568.4,8.6741]
[1750040712111,0.77852,2568.5,2568.4,8.6591]
[1750040712315,0.7785,2568.6,2568.4,8.6591]
[1750040713803,0.77852,2568.5,2568.4,8.6591]
[1750040714003,0.7785,2568.6,2568.4,8.6591]
[1750040714204,0.77847,2568.7,2568.5,0.7785]
[1750040714407,0.77849,2568.6,2568.5,1.3577]
[1750040715215,0.77847,2568.7,2568.5,1.3577]
[1750040715911,0.77849,2568.6,2568.5,1.3577]
[1750040716113,0.77849,2568.6,2568.5,8.7187]
[1750040716614,0.77848,2568.7,2568.5,8.7187]
[1750040716806,0.77848,2568.7,2568.5,1.3577]
[1750040717007,0.77848,2568.7,2568.6,7.361]
[1750040717208,0.77849,2568.6,2568.5,1.3577]
[1750040717408,0.77849,2568.6,2568.5,8.7187]
[1750040718417,0.77848,2568.7,2568.5,8.7187]
[1750040718609,0.77848,2568.7,2568.5,9.49722]
[1750040718914,0.77848,2568.7,2568.5,8.7187]
[1750040719112,0.77848,2568.7,2568.5,9.49722]
[1750040719816,3.99207771,2568.8,2568.5,9.4972]
[1750040720115,0.77847,2568.7,2568.5,9.4972]
[1750040721815,3.99207771,2568.8,2568.5,9.4972]
[1750040722015,3.99207771,2568.8,2568.6,0.77848]
[1750040722417,0.77846,2568.7,2568.5,9.4972]
[1750040723516,3.21363771,2568.8,2568.7,0.77846]
[1750040723717,0.00583771,2568.8,2568.7,3.98626]
[1750040724110,0.77829,2569.3,2569.1,0.77834]
[1750040724412,0.77829,2569.3,2569.0,0.77835]
[1750040724618,0.77829,2569.3,2568.9,7.361]
[1750040724619,0.77829,2569.3,2569.1,0.77833]
[1750040725126,0.77833,2569.2,2569.0,2.02856]
[1750040726818,0.77829,2569.3,2569.1,0.77833]
[1750040727120,0.00583771,2569.5,2569.4,0.77824]
[1750040727316,0.00583771,2569.5,2569.4,7.36]
[1750040727927,0.78406771,2569.5,2569.4,7.36]
[1750040728117,3.21363771,2569.5,2569.0,1.2502]
[1750040728417,0.77834,2569.1,2569.0,8.6092]
[1750040728615,0.77837,2569.0,2568.7,1.45914]
[1750040728923,3.2078,2569.2,2568.8,8.6637]
[1750040729113,0.77827,2569.4,2569.0,0.77835]
[1750040729422,0.99535663,2569.3,2569.1,2.08303]
[1750040729620,0.77827,2569.4,2569.2,1.3047]
[1750040729816,0.99533586,2569.3,2569.2,1.3047]
[1750040730021,0.99533586,2569.3,2569.2,2.083]
[1750040730216,3.99186771,2569.5,2569.2,2.083]
[1750040730416,0.99521307,2569.4,2569.3,1.3047]
[1750040730818,0.99521307,2569.4,2569.3,2.08297]
[1750040731027,0.00583771,2569.5,2569.4,0.77824]
[1750040731218,0.00583771,2569.5,2569.4,2.6001]
[1750040731420,0.00583771,2569.5,2569.4,9.9591]
[1750040731722,0.00583771,2569.5,2569.2,7.359]
[1750040732129,0.77827,2569.4,2569.2,7.359]
[1750040732317,0.00583771,2569.5,2569.2,7.359]
[1750040732318,0.77828,2569.3,2569.2,7.359]
[1750040732822,0.77826,2569.4,2569.2,7.359]
[1750040733022,0.00583771,2569.5,2569.2,7.359]
[1750040733023,0.77827,2569.3,2569.2,7.359]
[1750040733427,0.77826,2569.4,2569.2,7.359]
[1750040733819,4.3737085,2569.5,2568.9,2.614]
[1750040734126,0.77832,2569.2,2569.0,7.359]
[1750040734518,0.77832,2569.2,2569.0,8.13736]
[1750040734818,3.2078,2569.3,2569.1,0.77833]
[1750040735023,3.98608,2569.3,2569.2,1.3635]
[1750040735226,3.2078,2569.3,2569.2,1.3635]
[1750040736626,0.77826,2569.4,2569.2,1.3635]
[1750040737729,0.65793771,2569.5,2569.2,2.14178]
[1750040737927,0.98680986,2569.4,2569.2,2.14178]
[1750040738226,0.77824,2569.4,2569.2,1.3635]
[1750040738425,0.77827,2569.3,2569.2,1.3635]
[1750040738820,0.65793771,2569.5,2569.0,7.359]
[1750040738821,0.77831,2569.2,2569.0,7.359]
[1750040739025,0.77831,2569.2,2569.0,8.6755]
[1750040739324,0.77832,2569.2,2569.0,8.6755]
[1750040739826,0.77834,2569.1,2569.0,8.6755]
[1750040740028,0.77832,2569.2,2569.0,8.6755]
[1750040740726,0.77832,2569.2,2569.0,9.45387]
[1750040741225,0.77832,2569.2,2569.0,8.6755]
[1750040741424,6.31364079,2569.2,2568.2,26.76163771]
[1750040741627,3.2078,2568.8,2568.5,0.77849]
[1750040741830,3.2078,2568.8,2568.4,7.359]
[1750040742021,0.77852,2568.5,2568.4,7.359]
[1750040742220,3.2078,2568.5,2568.2,23.55383771]
[1750040742427,0.77858,2568.3,2568.2,0.00583771]
[1750040742622,6.1336263,2568.3,2568.2,0.00583771]
[1750040742922,6.1336263,2568.3,2567.8,7.099]
[1750040742923,0.98717551,2568.3,2567.8,7.099]
[1750040743123,0.98717551,2568.2,2567.9,1.9675]
[1750040743320,3.2078,2568.5,2568.0,1.44885]
[1750040743321,0.77856,2568.4,2568.0,1.44885]
[1750040743530,0.77856,2568.4,2568.1,1.2879]
[1750040743830,3.98633,2568.5,2568.1,2.06653]
[1750040744024,0.98743533,2568.4,2568.1,2.06653]
[1750040744224,3.98633,2568.5,2568.2,1.3659]
[1750040744434,0.98576164,2568.4,2568.2,1.3659]
[1750040744727,3.98633,2568.5,2568.2,2.14449]
[1750040745028,6.37287079,2568.9,2568.3,3.2078]
[1750040745029,3.98621,2568.9,2568.3,3.2078]
[1750040745226,0.98566845,2568.8,2568.3,4.5737]
[1750040745433,0.98566845,2568.7,2568.6,0.77849]
[1750040745726,0.98559611,2568.7,2568.6,0.77849]
[1750040745920,0.77838,2569.0,2568.7,0.77845]
[1750040746125,0.9855793,2568.9,2568.6,0.77847]
[1750040746327,0.7784,2568.9,2568.7,1.3659]
[1750040746730,3.2078,2569.2,2568.7,1.3659]
[1750040746934,0.7784,2568.9,2568.7,1.3659]
[1750040747232,0.77838,2569.0,2568.7,2.14434]
[1750040747429,0.98567092,2568.9,2568.7,2.14434]
[1750040747729,0.77838,2569.0,2568.7,2.14434]
[1750040747931,0.98566115,2568.9,2568.7,2.14434]
[1750040748128,0.77838,2569.0,2568.7,2.14434]
[1750040748435,0.98609123,2568.9,2568.7,2.14434]
[1750040748623,0.77838,2569.0,2568.7,2.14434]
[1750040748823,0.98609247,2568.9,2568.7,2.14434]
[1750040749127,0.7784,2568.9,2568.7,1.3659]
[1750040749350,1.76461159,2568.8,2568.5,7.8785]
[1750040749632,0.77843,2568.8,2568.5,7.8785]
[1750040749831,0.77843,2568.8,2568.6,0.77849]
[1750040750026,0.77843,2568.8,2568.5,7.8785]
[1750040750428,3.98622,2568.9,2568.6,0.77849]
[1750040750629,3.98622,2568.9,2568.6,1.2892]
[1750040751035,3.98622,2568.9,2568.6,2.06767]
[1750040751333,0.77843,2568.8,2568.6,2.06767]
[1750040751535,0.77843,2568.8,2568.6,1.2892]
[1750040751727,3.98621,2568.9,2568.6,2.06768]
[1750040752335,0.77843,2568.8,2568.6,1.2892]
[1750040753032,0.77843,2568.8,2568.6,2.06768]
[1750040753633,3.98621,2568.9,2568.6,2.06767]
[1750040754231,3.98622,2568.9,2568.6,2.06767]
[1750040754629,0.77844,2568.8,2568.6,1.2892]
[1750040754832,3.2078,2568.9,2568.5,7.1]
[1750040755035,0.77845,2568.8,2568.5,7.87849]
[1750040755235,0.77846,2568.7,2568.5,7.87849]
[1750040755436,0.77844,2568.8,2568.5,7.1]
[1750040755636,0.77846,2568.7,2568.5,7.87849]
[1750040755831,0.77844,2568.8,2568.6,0.77849]
[1750040756032,0.77846,2568.7,2568.5,7.8785]
[1750040756333,0.7785,2568.6,2568.5,7.1]
[1750040756633,0.7785,2568.6,2568.3,1.3016]
[1750040756634,3.2078,2568.6,2568.3,7.1]
[1750040757137,3.2078,2568.6,2568.4,2.04683]
[1750040757440,3.98631,2568.6,2568.3,0.77857]
[1750040757625,3.9863,2568.6,2568.3,7.87856]
[1750040757831,3.2078,2568.6,2568.4,0.77854]
[1750040758232,3.2078,2568.6,2568.4,2.04684]
[1750040758834,3.2078,2568.6,2568.5,0.77852]
[1750040759334,3.98629,2568.6,2568.4,1.2683]
[1750040759632,0.77856,2568.4,2568.2,7.1]
[1750040759836,0.77858,2568.3,2568.2,7.1]
[1750040760141,4.5381,2568.8,2568.2,7.1]
[1750040760331,0.77851,2568.6,2568.3,2.11377]
[1750040760531,0.77852,2568.5,2568.3,1.3352]
[1750040760726,4.36787079,2568.5,2568.0,0.00583771]
[1750040761029,3.98644,2568.1,2568.0,0.00583771]
[1750040761226,4.97333321,2568.1,2568.0,0.00583771]
[1750040761427,7.56773321,2568.1,2568.0,0.00583771]
[1750040762042,6.31983321,2568.1,2568.0,0.00583771]
[1750040762634,7.55853321,2568.1,2568.0,0.00583771]
[1750040762836,1.94671,2568.0,2567.1,3.2078]
[1750040763040,3.9867,2567.3,2566.9,3.32158]
[1750040763246,3.2078,2567.3,2567.1,0.77894]
[1750040763444,3.9867,2567.3,2567.0,0.77895]
[1750040763633,0.77891,2567.2,2566.9,3.32159]
[1750040763834,3.99252771,2567.3,2566.9,3.32159]
[1750040764134,3.99252771,2567.3,2566.9,3.32158]
[1750040764135,0.77892,2567.2,2566.9,3.32158]
[1750040764339,3.21363771,2567.3,2566.9,2.5426]
[1750040764541,3.21363771,2567.3,2566.9,1.3018]
[1750040764741,0.77894,2567.1,2566.8,0.00583771]
[1750040764942,0.77894,2567.1,2566.8,0.78486771]
[1750040765239,3.21363771,2567.3,2566.8,0.00583771]
[1750040765439,3.2078,2567.7,2567.5,0.7788]
[1750040765736,0.77881,2567.6,2567.3,7.102]
[1750040765940,3.98658,2567.7,2567.4,0.77885]
[1750040766139,0.7788,2567.6,2567.3,7.88086]
[1750040766441,0.7788,2567.6,2567.3,2.14038]
[1750040766642,3.99241771,2567.7,2567.3,2.14038]
[1750040766839,3.21363771,2567.7,2567.6,0.77879]
[1750040767343,3.21363771,2567.7,2567.3,1.3615]
[1750040767644,0.77881,2567.6,2567.3,1.3615]
[1750040767944,3.99241771,2567.7,2567.3,2.14036]
[1750040768441,0.77879,2567.6,2567.3,2.14036]
[1750040768944,3.99241771,2567.7,2567.3,2.14036]
[1750040769237,3.99241771,2567.7,2567.4,0.77884]
[1750040769636,0.00583771,2567.7,2567.5,1.272]
[1750040769837,0.00583771,2567.7,2567.5,2.0508]
[1750040770036,0.00583771,2567.7,2567.5,1.272]
[1750040770239,0.78459771,2567.7,2567.5,1.272]
[1750040770539,3.99241771,2567.7,2567.5,1.272]
[1750040770740,3.21363771,2567.7,2567.5,1.272]
[1750040771047,3.21363771,2567.7,2567.3,7.103]
[1750040771243,3.99242771,2567.7,2566.9,3.2078]
[1750040771438,3.2078,2567.3,2566.8,0.00583771]
[1750040771636,3.21363771,2567.7,2567.2,0.77889]
[1750040771836,3.21363771,2567.7,2566.8,0.78485771]
[1750040771837,0.77894,2567.2,2566.8,0.78485771]
[1750040772051,3.9867,2567.3,2566.9,7.882]
[1750040772244,3.9867,2567.3,2567.0,0.77897]
[1750040772545,0.77891,2567.2,2567.0,1.3704]
[1750040772742,3.2078,2567.6,2567.0,1.3704]
[1750040772944,0.7789,2567.3,2567.0,2.14937]
[1750040773442,4.5746,2567.6,2566.8,0.00583771]
[1750040773443,0.77893,2567.2,2566.8,0.00583771]
[1750040773741,0.77893,2567.2,2566.9,0.77898]
[1750040773949,0.7789,2567.3,2567.0,2.14936]
[1750040774248,0.77891,2567.2,2567.0,1.3704]
[1750040774746,0.7789,2567.3,2567.0,2.14937]
[1750040774948,0.77888,2567.3,2567.0,2.14937]
[1750040775244,3.2078,2567.1,2566.8,0.00583771]
[1750040775438,0.77898,2567.0,2566.8,0.78485771]
[1750040775640,0.77898,2567.0,2566.8,1.26823771]
[1750040776946,0.77898,2567.0,2566.8,2.04726771]
[1750040777248,0.77898,2567.0,2566.8,1.26823771]
[1750040777641,3.2078,2567.1,2566.8,1.26823771]
[1750040777844,0.77898,2567.0,2566.8,2.04725771]
[1750040778745,3.98675,2567.1,2566.9,0.779]
[1750040778947,3.98675,2567.1,2566.9,1.251]
[1750040779259,3.2078,2567.1,2566.9,2.03]
[1750040779448,3.2078,2567.1,2566.8,0.00583771]
[1750040779643,0.779,2566.9,2566.8,1.25683771]
[1750040779849,0.77899,2567.0,2566.8,1.25683771]
[1750040780653,3.98676,2567.1,2566.9,0.779]
[1750040781153,3.98676,2567.1,2566.8,1.25683771]
[1750040781154,3.98676,2567.1,2566.8,2.03584771]
[1750040781355,3.98676,2567.1,2566.9,0.779]
[1750040781556,3.98676,2567.1,2566.9,2.1396]
[1750040781854,3.98676,2567.1,2566.9,1.3606]
[1750040782447,0.77896,2567.1,2566.9,1.3606]
[1750040782653,0.77897,2567.0,2566.9,1.3606]
[1750040783650,3.2078,2567.1,2566.9,1.3606]
[1750040784166,0.779,2566.9,2566.8,0.00583771]
[1750040784566,3.2078,2567.1,2566.8,0.78486771]
[1750040784755,3.2078,2567.1,2567.0,0.77897]
[1750040785162,3.98674,2567.1,2566.9,0.77898]
[1750040785364,3.98674,2567.1,2567.0,1.2947]
[1750040785564,0.77899,2567.0,2566.8,0.00583771]
[1750040786065,3.2078,2567.1,2566.9,0.77899]
[1750040786265,3.98674,2567.1,2566.9,0.77899]
[1750040786562,0.77899,2567.0,2566.8,0.78486771]
[1750040786766,0.77899,2567.0,2566.8,2.07626771]
[1750040787266,0.779,2567.0,2566.8,1.29723771]
[1750040787458,0.779,2567.0,2566.8,2.07626771]
[1750040787760,3.98675,2567.1,2566.9,0.77898]
[1750040787959,3.98675,2567.1,2567.0,1.2914]
[1750040788362,4.20289614,2567.1,2567.0,1.2914]
[1750040788763,4.20289614,2567.1,2567.0,2.07037]
[1750040788964,0.77887,2567.4,2567.0,3.47653586]
[1750040789267,0.66343771,2567.7,2567.2,2.18513586]
[1750040789268,0.00583771,2567.7,2567.2,2.18513586]
[1750040789468,0.00583771,2567.7,2567.5,2.96394586]
[1750040789661,0.00583771,2567.7,2567.5,0.77881]
[1750040789964,0.78459771,2567.7,2567.5,7.087]
[1750040790163,0.00583771,2567.7,2567.6,1.3374]
[1750040790358,1.00182805,2567.7,2567.6,2.11619]
[1750040790559,0.00583771,2567.7,2567.6,2.11619]
[1750040791363,3.2078,2568.2,2568.1,0.77864]
[1750040791558,6.79393027,2568.9,2568.1,7.086]
[1750040791762,6.79393027,2568.9,2568.7,0.77846]
[1750040791763,0.99521487,2568.8,2568.7,0.77846]
[1750040792064,3.2078,2569.2,2568.8,0.77841]
[1750040792268,1.7735783,2569.1,2568.7,0.77844]
[1750040792463,0.78415771,2569.2,2568.8,2.11583]
[1750040792770,0.78415771,2569.2,2568.8,2.11581]
[1750040792967,0.00583771,2569.2,2568.9,0.77838]
[1750040793167,0.00583771,2569.2,2568.8,1.3374]
[1750040793467,0.00583771,2569.2,2568.9,0.77839]
[1750040793668,0.00583771,2569.2,2569.0,0.77836]
[1750040793872,0.00583771,2569.2,2568.9,0.63]
[1750040794368,0.00583771,2569.2,2569.0,1.3693]
[1750040794562,0.00583771,2569.2,2569.1,0.77834]
[1750040796068,3.2078,2570.1,2569.1,15.2928]
[1750040796267,3.2078,2570.1,2569.6,0.77818]
[1750040796467,0.77809,2570.0,2569.6,0.77818]
[1750040796666,0.77806,2570.0,2569.6,0.77818]
[1750040796973,0.77806,2570.0,2569.6,2.12818]
[1750040797467,3.21363771,2570.1,2569.6,2.12818]
[1750040797468,0.7781,2569.9,2569.6,2.12818]
[1750040797678,0.77813,2569.8,2569.6,1.35]
[1750040798368,3.21363771,2570.1,2569.6,1.35]
[1750040798570,0.77814,2569.8,2569.6,1.35]
[1750040798770,3.21363771,2570.1,2569.6,1.35]
[1750040798974,3.21363771,2570.1,2570.0,0.77806]
[1750040798975,0.00583771,2570.1,2570.0,0.77806]
[1750040799180,3.2078,2570.8,2570.0,8.3269]
[1750040799467,3.98564,2570.8,2570.4,0.77794]
[1750040799667,3.2078,2570.8,2570.5,8.3269]
[1750040799872,3.2078,2570.8,2570.7,0.77785]
[1750040800178,3.2078,2570.8,2570.7,7.082]
[1750040800370,3.2078,2570.8,2570.7,7.85985]
[1750040800767,3.2078,2570.8,2570.7,7.082]
[1750040801084,3.98562,2570.8,2570.7,7.082]
[1750040801266,3.98562,2570.8,2570.5,1.24973771]
[1750040801471,3.98562,2570.8,2570.5,2.02764771]
[1750040801673,3.98562,2570.8,2570.6,7.082]
[1750040801975,3.98562,2570.8,2570.7,1.3327]
[1750040802774,0.77782,2570.8,2570.7,1.3327]
[1750040802978,0.77782,2570.8,2570.7,8.4077]
[1750040803169,0.77782,2570.8,2570.7,1.3327]
[1750040803369,0.77782,2570.8,2570.7,8.4057]
[1750040803869,0.00583771,2571.0,2570.7,1.3327]
[1750040804075,0.00583771,2571.0,2570.6,45.16875471]
[1750040804076,3.2078,2571.2,2570.9,4.36875471]
[1750040804279,3.98552,2571.2,2571.0,1.3327]
[1750040804468,3.2078,2571.2,2571.0,1.3327]
[1750040804674,3.2078,2571.7,2571.1,3.2078]
[1750040804967,3.2078,2571.7,2571.2,33.7792]
[1750040804968,0.77767,2571.3,2571.2,33.7792]
[1750040805569,0.77767,2571.3,2571.2,33.7782]
[1750040806078,0.77767,2571.3,2571.2,33.7702]
[1750040807282,0.77767,2571.3,2571.2,1.3692]
[1750040807579,0.77766,2571.4,2571.2,33.7692]
[1750040807884,0.77764,2571.4,2571.3,1.3292]
[1750040808774,0.00385101,2571.5,2571.3,1.3292]
[1750040808775,0.78148101,2571.5,2571.3,2.10687]
[1750040809081,0.00385101,2571.5,2571.3,1.3292]
[1750040809286,0.00385101,2571.5,2571.3,2.10687]
[1750040809477,0.00385101,2571.5,2571.4,0.77764]
[1750040809780,0.00385101,2571.5,2571.4,2.10684]
[1750040811283,0.00385101,2571.5,2571.4,34.49884]
[1750040812277,0.6733,2572.3,2571.4,36.929]
[1750040812472,0.77751,2571.9,2571.7,0.77755]
[1750040812677,0.77751,2571.9,2571.8,33.6508]
[1750040813186,0.6733,2572.3,2571.8,33.6508]
[1750040813381,3.2078,2572.4,2571.9,4.35567226]
[1750040813582,3.2078,2572.7,2572.0,4.4716]
[1750040813782,0.77735,2572.4,2572.1,0.7774]
[1750040814083,0.77735,2572.4,2572.2,34.50209]
[1750040814280,0.77735,2572.4,2572.3,1.3387]
[1750040814479,0.77731,2572.5,2572.3,2.11605]